[Event "*** Titled Tuesday Blitz"]
[Site "Chess.com"]
[Date "2018.08.07"]
[Round "3"]
[White "ftorodent"]
[Black "Indianlad"]
[Result "1-0"]
[WhiteElo "2543"]
[BlackElo "2747"]
[TimeControl "180+2"]
[EndTime "13:31:19 PDT"]
[Termination "ftorodent won by resignation"]

1. d4 {[%clk 0:03:01.9]} 1... Nf6 {[%clk 0:02:53.3]} 2. c4 {[%clk 0:03:02.1]}
2... g6 {[%clk 0:02:54.6]} 3. Nf3 {[%clk 0:03:01.4]} 3... Bg7 {[%clk 0:02:55]}
4. Nc3 {[%clk 0:03:01.9]} 4... d5 {[%clk 0:02:54.7]} 5. cxd5 {[%clk 0:03:02.7]}
5... Nxd5 {[%clk 0:02:56.1]} 6. Bg5 {[%clk 0:03:03.1]} 6... Nxc3 {[%clk
0:02:56.2]} 7. bxc3 {[%clk 0:03:03.4]} 7... c5 {[%clk 0:02:58]} 8. e3 {[%clk
0:03:04.5]} 8... O-O {[%clk 0:02:58.8]} 9. Qd2 {[%clk 0:03:04.8]} 9... Nc6
{[%clk 0:03:00.2]} 10. Be2 {[%clk 0:03:05.3]} 10... Qa5 {[%clk 0:02:59.6]} 11.
O-O {[%clk 0:02:59.6]} 11... h6 {[%clk 0:02:57.5]} 12. Bh4 {[%clk 0:02:59.4]}
12... g5 {[%clk 0:02:57.7]} 13. Bg3 {[%clk 0:02:59.8]} 13... g4 {[%clk
0:02:59.2]} 14. Ne5 {[%clk 0:02:52.2]} 14... Nxe5 {[%clk 0:02:59.9]} 15. Bxe5
{[%clk 0:02:39.4]} 15... Bxe5 {[%clk 0:02:59.1]} 16. dxe5 {[%clk 0:02:40.4]}
16... c4 {[%clk 0:02:57.8]} 17. Qd4 {[%clk 0:02:39.3]} 17... Rd8 {[%clk
0:02:57.5]} 18. Qf4 {[%clk 0:02:39.6]} 18... Qxc3 {[%clk 0:02:58.1]} 19. Bxc4
{[%clk 0:02:30.5]} 19... Rf8 {[%clk 0:02:46.3]} 20. Rac1 {[%clk 0:02:31.1]}
20... Qb2 {[%clk 0:02:43.9]} 21. Rb1 {[%clk 0:02:31.3]} 21... Qc2 {[%clk
0:02:35.6]} 22. e6 {[%clk 0:02:18.2]} 22... fxe6 {[%clk 0:01:41.8]} 23. Qxg4+
{[%clk 0:02:17.5]} 23... Kf7 {[%clk 0:01:43.1]} 24. Rb5 {[%clk 0:02:01.6]} 24...
Qh7 {[%clk 0:01:00.5]} 25. Rd1 {[%clk 0:01:52.6]} 25... Rg8 {[%clk 0:00:58.5]}
26. Rf5+ {[%clk 0:01:47.4]} 1-0

[Event "*** Titled Tuesday Blitz"]
[Site "Chess.com"]
[Date "2018.08.07"]
[Round "3"]
[White "GrigorGrigorov"]
[Black "indfraeng"]
[Result "1-0"]
[WhiteElo "2702"]
[BlackElo "1889"]
[TimeControl "180+2"]
[EndTime "13:31:19 PDT"]
[Termination "GrigorGrigorov won by resignation"]

1. e4 {[%clk 0:03:01.9]} 1... e5 {[%clk 0:02:55.3]} 2. Nf3 {[%clk 0:03:02.9]}
2... Nf6 {[%clk 0:02:54.4]} 3. d3 {[%clk 0:03:02]} 3... Nc6 {[%clk 0:02:51.9]}
4. c3 {[%clk 0:03:02.2]} 4... d5 {[%clk 0:02:52.4]} 5. Qc2 {[%clk 0:03:00.3]}
5... Bg4 {[%clk 0:02:51.4]} 6. Be2 {[%clk 0:03:01.3]} 6... Bc5 {[%clk
0:02:47.5]} 7. O-O {[%clk 0:03:00.4]} 7... O-O {[%clk 0:02:46.7]} 8. b4 {[%clk
0:02:59.6]} 8... Bb6 {[%clk 0:02:46.9]} 9. a3 {[%clk 0:02:50]} 9... a6 {[%clk
0:02:45.7]} 10. Bb2 {[%clk 0:02:48.9]} 10... Qe7 {[%clk 0:02:18.6]} 11. Re1
{[%clk 0:02:48.6]} 11... Rfe8 {[%clk 0:02:15.8]} 12. Nbd2 {[%clk 0:02:49]} 12...
Rad8 {[%clk 0:02:14.6]} 13. exd5 {[%clk 0:02:38.1]} 13... Nxd5 {[%clk
0:02:13.7]} 14. c4 {[%clk 0:02:33.4]} 14... Nf4 {[%clk 0:02:13.6]} 15. c5 {[%clk
0:02:31.8]} 15... Ba7 {[%clk 0:02:11.6]} 16. Bf1 {[%clk 0:02:30.7]} 16... f6
{[%clk 0:02:08.1]} 17. d4 {[%clk 0:02:27.5]} 17... Bxf3 {[%clk 0:01:58.7]} 18.
Nxf3 {[%clk 0:02:26.7]} 18... e4 {[%clk 0:01:59.6]} 19. Rad1 {[%clk 0:02:01.5]}
19... f5 {[%clk 0:01:58.4]} 20. d5 {[%clk 0:01:58.4]} 20... Nxd5 {[%clk
0:01:56.3]} 21. Bc4 {[%clk 0:01:58.7]} 21... Qe6 {[%clk 0:01:56.3]} 22. Ng5
{[%clk 0:01:56.1]} 22... Qg6 {[%clk 0:01:51.3]} 23. Rxd5 {[%clk 0:01:53.8]}
23... Kh8 {[%clk 0:01:48]} 24. Nf7+ {[%clk 0:01:49.2]} 24... Qxf7 {[%clk
0:01:44.2]} 25. Rxd8 {[%clk 0:01:50.7]} 25... Qg6 {[%clk 0:01:34.3]} 26. Rxe8+
{[%clk 0:01:50]} 26... Qxe8 {[%clk 0:01:36.2]} 27. Qc3 {[%clk 0:01:48.3]} 27...
Qe7 {[%clk 0:01:36]} 28. Rd1 {[%clk 0:01:48.2]} 28... f4 {[%clk 0:01:33.5]} 29.
Qh3 {[%clk 0:01:46.8]} 29... h6 {[%clk 0:01:30.1]} 30. Rd7 {[%clk 0:01:41.6]}
30... Qg5 {[%clk 0:01:25.2]} 31. Bxg7+ {[%clk 0:01:40.3]} 31... Qxg7 {[%clk
0:01:25.1]} 32. Rxg7 {[%clk 0:01:40.9]} 32... Kxg7 {[%clk 0:01:27]} 1-0

[Event "*** Titled Tuesday Blitz"]
[Site "Chess.com"]
[Date "2018.08.07"]
[Round "3"]
[White "Firouzja2003"]
[Black "krzyzan94"]
[Result "0-1"]
[WhiteElo "2831"]
[BlackElo "2640"]
[TimeControl "180+2"]
[EndTime "13:31:52 PDT"]
[Termination "krzyzan94 won by resignation"]

1. e4 {[%clk 0:03:01.9]} 1... e5 {[%clk 0:02:59.2]} 2. Nf3 {[%clk 0:03:03.1]}
2... Nc6 {[%clk 0:03:00.4]} 3. Bb5 {[%clk 0:03:04.8]} 3... a6 {[%clk 0:02:58.5]}
4. Ba4 {[%clk 0:03:06.2]} 4... Nf6 {[%clk 0:02:59.7]} 5. O-O {[%clk 0:03:07.1]}
5... Nxe4 {[%clk 0:02:59.5]} 6. d4 {[%clk 0:03:07.8]} 6... exd4 {[%clk
0:02:59.2]} 7. Re1 {[%clk 0:03:00.8]} 7... d5 {[%clk 0:02:59.9]} 8. Nxd4 {[%clk
0:02:53.4]} 8... Bd6 {[%clk 0:03:00.6]} 9. Nxc6 {[%clk 0:02:54.6]} 9... Bxh2+
{[%clk 0:03:01.2]} 10. Kh1 {[%clk 0:02:55.4]} 10... Qh4 {[%clk 0:03:02.4]} 11.
Rxe4+ {[%clk 0:02:48.4]} 11... dxe4 {[%clk 0:03:04.3]} 12. Qd8+ {[%clk
0:02:48.8]} 12... Qxd8 {[%clk 0:03:05.6]} 13. Nxd8+ {[%clk 0:02:50]} 13... Kxd8
{[%clk 0:03:07]} 14. Kxh2 {[%clk 0:02:51]} 14... Be6 {[%clk 0:03:07.3]} 15. Nc3
{[%clk 0:02:49.8]} 15... c5 {[%clk 0:03:07.1]} 16. Nxe4 {[%clk 0:01:59.2]} 16...
b5 {[%clk 0:03:06.2]} 17. Nxc5 {[%clk 0:02:00.8]} 17... bxa4 {[%clk 0:03:04.4]}
18. Nxa4 {[%clk 0:02:02.3]} 18... Ke7 {[%clk 0:02:58.9]} 19. b3 {[%clk
0:02:01.8]} 19... Rhd8 {[%clk 0:02:52.4]} 20. c4 {[%clk 0:01:40.1]} 20... Rac8
{[%clk 0:02:42.4]} 21. Be3 {[%clk 0:01:35.9]} 21... Rd3 {[%clk 0:02:35.8]} 22.
Re1 {[%clk 0:01:33.4]} 22... Kf6 {[%clk 0:02:29.6]} 23. Nb2 {[%clk 0:01:20.1]}
23... Rd7 {[%clk 0:02:29.6]} 24. Na4 {[%clk 0:01:21.3]} 24... Rd3 {[%clk
0:02:16.8]} 25. Re2 {[%clk 0:01:22.1]} 25... Rc6 {[%clk 0:02:07.6]} 26. Ba7
{[%clk 0:01:19.4]} 26... Bf5 {[%clk 0:01:55.4]} 27. Nc3 {[%clk 0:01:14.4]} 27...
g5 {[%clk 0:01:23.5]} 28. Nd5+ {[%clk 0:01:14.9]} 28... Kg7 {[%clk 0:01:24.8]}
29. Nb4 {[%clk 0:01:10.9]} 29... Rh6+ {[%clk 0:01:25.1]} 0-1

[Event "*** Titled Tuesday Blitz"]
[Site "Chess.com"]
[Date "2018.08.07"]
[Round "3"]
[White "Carolina-moon"]
[Black "luca_va99"]
[Result "0-1"]
[WhiteElo "2147"]
[BlackElo "2394"]
[TimeControl "180+2"]
[EndTime "13:32:18 PDT"]
[Termination "luca_va99 won by resignation"]

1. e4 {[%clk 0:03:01.7]} 1... e6 {[%clk 0:02:59.8]} 2. d4 {[%clk 0:03:01.7]}
2... d5 {[%clk 0:02:54.1]} 3. Nd2 {[%clk 0:03:03.1]} 3... Nf6 {[%clk 0:02:52.6]}
4. e5 {[%clk 0:03:03.3]} 4... Nfd7 {[%clk 0:02:52.6]} 5. Bd3 {[%clk 0:03:04.4]}
5... c5 {[%clk 0:02:53.2]} 6. c3 {[%clk 0:03:05.8]} 6... b6 {[%clk 0:02:53.9]}
7. Ne2 {[%clk 0:02:49.4]} 7... Ba6 {[%clk 0:02:53.6]} 8. Bc2 {[%clk 0:02:45.8]}
8... Be7 {[%clk 0:02:52.6]} 9. O-O {[%clk 0:02:45.9]} 9... O-O {[%clk
0:02:48.6]} 10. f4 {[%clk 0:02:45.7]} 10... cxd4 {[%clk 0:02:45.2]} 11. cxd4
{[%clk 0:02:45.8]} 11... Nc6 {[%clk 0:02:42.6]} 12. Nf3 {[%clk 0:02:45.5]} 12...
f5 {[%clk 0:02:31.1]} 13. Be3 {[%clk 0:02:02.5]} 13... Nb4 {[%clk 0:02:19.3]}
14. Ba4 {[%clk 0:01:55.1]} 14... Rc8 {[%clk 0:02:13.5]} 15. a3 {[%clk
0:01:47.1]} 15... Nc6 {[%clk 0:02:00.9]} 16. Rc1 {[%clk 0:01:43.3]} 16... Na5
{[%clk 0:02:01.5]} 17. Rxc8 {[%clk 0:01:33.2]} 17... Qxc8 {[%clk 0:02:03.4]} 18.
b4 {[%clk 0:01:13]} 18... Nc4 {[%clk 0:02:00.3]} 19. Bf2 {[%clk 0:01:11.9]}
19... Nxa3 {[%clk 0:01:49]} 20. Qb3 {[%clk 0:00:52.8]} 20... Bxe2 {[%clk
0:01:46.7]} 21. Qxa3 {[%clk 0:00:49.7]} 21... Bxf1 {[%clk 0:01:46.8]} 22. Kxf1
{[%clk 0:00:50.9]} 22... a5 {[%clk 0:01:47.2]} 23. Qe3 {[%clk 0:00:43.8]} 23...
axb4 {[%clk 0:01:46.5]} 24. Ng5 {[%clk 0:00:45]} 24... Bxg5 {[%clk 0:01:46.7]}
25. fxg5 {[%clk 0:00:45.9]} 25... Qc4+ {[%clk 0:01:43.6]} 26. Kg1 {[%clk
0:00:45]} 26... b5 {[%clk 0:01:43.7]} 27. Bd1 {[%clk 0:00:42.1]} 27... Nb6
{[%clk 0:01:39.8]} 28. g6 {[%clk 0:00:39.8]} 28... hxg6 {[%clk 0:01:39.9]} 29.
Qg5 {[%clk 0:00:40.6]} 29... Qd3 {[%clk 0:01:35.7]} 0-1

[Event "*** Titled Tuesday Blitz"]
[Site "Chess.com"]
[Date "2018.08.07"]
[Round "3"]
[White "Zhuu96"]
[Black "Antifish7"]
[Result "1-0"]
[WhiteElo "2828"]
[BlackElo "2411"]
[TimeControl "180+2"]
[EndTime "13:32:30 PDT"]
[Termination "Zhuu96 won by resignation"]

1. e4 {[%clk 0:03:00.9]} 1... c5 {[%clk 0:03:00.3]} 2. Nf3 {[%clk 0:03:02]} 2...
d6 {[%clk 0:03:01.6]} 3. d4 {[%clk 0:03:03.2]} 3... cxd4 {[%clk 0:03:03.5]} 4.
Nxd4 {[%clk 0:03:04.6]} 4... Nf6 {[%clk 0:03:05]} 5. Nc3 {[%clk 0:03:06.3]} 5...
a6 {[%clk 0:03:06.4]} 6. Be2 {[%clk 0:03:06.4]} 6... e5 {[%clk 0:03:06.8]} 7.
Nb3 {[%clk 0:03:06.9]} 7... Be7 {[%clk 0:03:08.2]} 8. O-O {[%clk 0:03:07.9]}
8... Be6 {[%clk 0:03:09.6]} 9. Qd3 {[%clk 0:03:08.9]} 9... O-O {[%clk
0:03:08.1]} 10. Nd5 {[%clk 0:03:10.1]} 10... Bxd5 {[%clk 0:03:03.7]} 11. exd5
{[%clk 0:03:11.1]} 11... Nbd7 {[%clk 0:03:05.4]} 12. c4 {[%clk 0:03:12.2]} 12...
Rc8 {[%clk 0:03:03.1]} 13. Bd2 {[%clk 0:03:09.5]} 13... b6 {[%clk 0:03:03.7]}
14. Rac1 {[%clk 0:03:05.2]} 14... Nc5 {[%clk 0:02:58.9]} 15. Nxc5 {[%clk
0:03:05.6]} 15... bxc5 {[%clk 0:03:00.8]} 16. a3 {[%clk 0:03:02.6]} 16... Nd7
{[%clk 0:03:00.1]} 17. b4 {[%clk 0:03:03.1]} 17... f5 {[%clk 0:03:00.1]} 18. Qh3
{[%clk 0:02:54.6]} 18... e4 {[%clk 0:02:52.3]} 19. f4 {[%clk 0:02:53.2]} 19...
Bf6 {[%clk 0:02:48.2]} 20. Kh1 {[%clk 0:02:53.4]} 20... Bd4 {[%clk 0:02:46.7]}
21. b5 {[%clk 0:02:51.1]} 21... Ra8 {[%clk 0:02:33.1]} 22. Qb3 {[%clk
0:02:48.9]} 22... Re8 {[%clk 0:02:23]} 23. a4 {[%clk 0:02:43.4]} 23... a5 {[%clk
0:02:12.4]} 24. Qh3 {[%clk 0:02:23.1]} 24... Qf6 {[%clk 0:02:08.7]} 25. g4
{[%clk 0:02:23.8]} 25... Nb6 {[%clk 0:01:53.1]} 26. gxf5 {[%clk 0:02:18.5]}
26... Nxa4 {[%clk 0:01:44.9]} 27. Be1 {[%clk 0:02:19.3]} 27... Nb6 {[%clk
0:01:39.4]} 28. Bh4 {[%clk 0:02:20]} 28... Qf8 {[%clk 0:01:34.4]} 29. Bh5 {[%clk
0:02:17.3]} 29... Reb8 {[%clk 0:01:07.9]} 30. Rg1 {[%clk 0:02:16.3]} 30... a4
{[%clk 0:01:07.4]} 31. Bg6 {[%clk 0:02:11.2]} 31... h6 {[%clk 0:01:01.8]} 32.
Bg5 {[%clk 0:02:10]} 32... Kh8 {[%clk 0:00:25]} 33. f6 {[%clk 0:02:07.5]} 33...
Bxf6 {[%clk 0:00:25.6]} 34. Bxe4 {[%clk 0:02:09.2]} 34... Bxg5 {[%clk
0:00:21.2]} 35. fxg5 {[%clk 0:02:10.3]} 35... Re8 {[%clk 0:00:21.8]} 36. Rcf1
{[%clk 0:02:09.4]} 36... Qe7 {[%clk 0:00:18.1]} 37. Bd3 {[%clk 0:02:10]} 37...
Qe3 {[%clk 0:00:18.4]} 38. Qf5 {[%clk 0:02:10.4]} 1-0

[Event "*** Titled Tuesday Blitz"]
[Site "Chess.com"]
[Date "2018.08.07"]
[Round "3"]
[White "GM_dmitrij"]
[Black "bilelou"]
[Result "1-0"]
[WhiteElo "2698"]
[BlackElo "2399"]
[TimeControl "180+2"]
[EndTime "13:32:45 PDT"]
[Termination "GM_dmitrij won by checkmate"]

1. e4 {[%clk 0:03:01.9]} 1... c5 {[%clk 0:02:31.2]} 2. Nf3 {[%clk 0:03:01.6]}
2... Nc6 {[%clk 0:02:30.6]} 3. Bb5 {[%clk 0:03:01.8]} 3... Qc7 {[%clk 0:02:30]}
4. Nc3 {[%clk 0:03:01.9]} 4... Nf6 {[%clk 0:02:30.9]} 5. O-O {[%clk 0:03:02.8]}
5... e5 {[%clk 0:02:12.3]} 6. d3 {[%clk 0:02:57]} 6... Be7 {[%clk 0:02:10.2]} 7.
Bg5 {[%clk 0:02:55.1]} 7... O-O {[%clk 0:02:07.8]} 8. a3 {[%clk 0:02:46.1]} 8...
d6 {[%clk 0:02:06.3]} 9. Bc4 {[%clk 0:02:45.9]} 9... Be6 {[%clk 0:02:04.4]} 10.
Nd5 {[%clk 0:02:30.7]} 10... Qd8 {[%clk 0:02:03.3]} 11. Nxf6+ {[%clk 0:02:00.3]}
11... Bxf6 {[%clk 0:02:03.4]} 12. Bxe6 {[%clk 0:02:01.7]} 12... fxe6 {[%clk
0:02:03.7]} 13. Be3 {[%clk 0:02:02.5]} 13... b6 {[%clk 0:01:59.6]} 14. c3 {[%clk
0:02:02.4]} 14... d5 {[%clk 0:02:00.4]} 15. Qa4 {[%clk 0:01:56]} 15... Qd7
{[%clk 0:01:58.2]} 16. Rae1 {[%clk 0:01:50.1]} 16... a6 {[%clk 0:01:55.1]} 17.
Qc2 {[%clk 0:01:46.3]} 17... d4 {[%clk 0:01:54.9]} 18. Bc1 {[%clk 0:01:43.9]}
18... b5 {[%clk 0:01:54.6]} 19. cxd4 {[%clk 0:01:38.5]} 19... Nxd4 {[%clk
0:01:52.1]} 20. Nxd4 {[%clk 0:01:37.7]} 20... cxd4 {[%clk 0:01:53.4]} 21. Bd2
{[%clk 0:01:37.5]} 21... Rac8 {[%clk 0:01:54]} 22. Qb3 {[%clk 0:01:38.5]} 22...
Rc6 {[%clk 0:01:55.5]} 23. Rc1 {[%clk 0:01:37.1]} 23... Rfc8 {[%clk 0:01:56.8]}
24. g3 {[%clk 0:01:33.9]} 24... h5 {[%clk 0:01:51.9]} 25. h4 {[%clk 0:01:32.8]}
25... Kh7 {[%clk 0:01:51.8]} 26. Kg2 {[%clk 0:01:31.6]} 26... Rxc1 {[%clk
0:01:52.3]} 27. Rxc1 {[%clk 0:01:30.7]} 27... Rxc1 {[%clk 0:01:52.4]} 28. Bxc1
{[%clk 0:01:32.6]} 28... a5 {[%clk 0:01:53]} 29. Bd2 {[%clk 0:01:28]} 29... a4
{[%clk 0:01:53.9]} 30. Qc2 {[%clk 0:01:28.8]} 30... Be7 {[%clk 0:01:53.8]} 31.
Bb4 {[%clk 0:01:19.9]} 31... Bxb4 {[%clk 0:01:51]} 32. axb4 {[%clk 0:01:21.8]}
32... Kg6 {[%clk 0:01:52]} 33. Qc5 {[%clk 0:01:16.6]} 33... Kf6 {[%clk
0:01:52.7]} 34. Qf8+ {[%clk 0:01:14.6]} 34... Kg6 {[%clk 0:01:51.7]} 35. Qc5
{[%clk 0:01:11.3]} 35... Kf6 {[%clk 0:01:51.3]} 36. f3 {[%clk 0:01:12.3]} 36...
g6 {[%clk 0:01:48.4]} 37. g4 {[%clk 0:01:09.8]} 37... hxg4 {[%clk 0:01:38.5]}
38. fxg4 {[%clk 0:00:52.7]} 38... g5 {[%clk 0:01:39]} 39. Qf8+ {[%clk
0:00:49.5]} 39... Qf7 {[%clk 0:01:38.5]} 40. hxg5+ {[%clk 0:00:46]} 40... Kg6
{[%clk 0:01:37.5]} 41. Qh6# {[%clk 0:00:46.9]} 1-0

[Event "*** Titled Tuesday Blitz"]
[Site "Chess.com"]
[Date "2018.08.07"]
[Round "3"]
[White "rikyshi"]
[Black "Kislov_Oleg"]
[Result "0-1"]
[WhiteElo "2195"]
[BlackElo "2376"]
[TimeControl "180+2"]
[EndTime "13:32:48 PDT"]
[Termination "Kislov_Oleg won on time"]

1. d4 {[%clk 0:03:01.9]} 1... Nf6 {[%clk 0:03:00.3]} 2. c4 {[%clk 0:03:03]} 2...
e6 {[%clk 0:03:01.3]} 3. Nc3 {[%clk 0:03:04]} 3... d5 {[%clk 0:03:02.2]} 4. cxd5
{[%clk 0:03:04.7]} 4... exd5 {[%clk 0:03:03.4]} 5. Bg5 {[%clk 0:03:05.7]} 5...
Be7 {[%clk 0:03:04.3]} 6. Qc2 {[%clk 0:03:06.5]} 6... O-O {[%clk 0:03:04.1]} 7.
e3 {[%clk 0:03:07.6]} 7... c6 {[%clk 0:03:05.3]} 8. Bd3 {[%clk 0:03:08.2]} 8...
h6 {[%clk 0:03:05]} 9. Bh4 {[%clk 0:03:09.1]} 9... Re8 {[%clk 0:03:06.1]} 10. f3
{[%clk 0:03:08.4]} 10... Nh5 {[%clk 0:02:48.8]} 11. Bf2 {[%clk 0:03:04]} 11...
Bg5 {[%clk 0:02:42.3]} 12. Qe2 {[%clk 0:02:13.6]} 12... Nf4 {[%clk 0:02:38.7]}
13. Qf1 {[%clk 0:02:02.5]} 13... Qe7 {[%clk 0:02:22.2]} 14. O-O-O {[%clk
0:01:55.4]} 14... Nxd3+ {[%clk 0:02:19.9]} 15. Rxd3 {[%clk 0:01:57.3]} 15... Bf5
{[%clk 0:02:20.4]} 16. f4 {[%clk 0:01:40.8]} 16... Bxd3 {[%clk 0:02:18.8]} 17.
Qxd3 {[%clk 0:01:42.7]} 17... Bf6 {[%clk 0:02:11.3]} 18. Nf3 {[%clk 0:01:42.3]}
18... Nd7 {[%clk 0:02:07]} 19. g4 {[%clk 0:01:40.5]} 19... g6 {[%clk 0:02:02.4]}
20. g5 {[%clk 0:01:16.8]} 20... hxg5 {[%clk 0:02:01.1]} 21. fxg5 {[%clk
0:01:18.7]} 21... Bxg5 {[%clk 0:01:58.5]} 22. Kd2 {[%clk 0:00:44.2]} 22... Bh6
{[%clk 0:01:51.2]} 23. Rg1 {[%clk 0:00:35]} 23... Qf6 {[%clk 0:01:41.3]} 24. Qe2
{[%clk 0:00:29.9]} 24... Re6 {[%clk 0:01:24.2]} 25. Bh4 {[%clk 0:00:13.8]} 25...
Qf5 {[%clk 0:01:16.6]} 26. Rg3 {[%clk 0:00:12.3]} 26... Rxe3 {[%clk 0:01:13.9]}
0-1

[Event "*** Titled Tuesday Blitz"]
[Site "Chess.com"]
[Date "2018.08.07"]
[Round "3"]
[White "Haykos"]
[Black "Kimster98"]
[Result "1-0"]
[WhiteElo "2519"]
[BlackElo "2496"]
[TimeControl "180+2"]
[EndTime "13:32:49 PDT"]
[Termination "Haykos won by resignation"]

1. e4 {[%clk 0:03:01.1]} 1... e5 {[%clk 0:03:00.7]} 2. Nf3 {[%clk 0:03:01.8]}
2... Nc6 {[%clk 0:02:57.2]} 3. Bc4 {[%clk 0:03:03.1]} 3... Nf6 {[%clk
0:02:56.4]} 4. d3 {[%clk 0:03:04.3]} 4... Be7 {[%clk 0:02:56.4]} 5. O-O {[%clk
0:03:05.4]} 5... O-O {[%clk 0:02:56.4]} 6. c3 {[%clk 0:03:02.1]} 6... d6 {[%clk
0:02:55.6]} 7. a4 {[%clk 0:03:02.8]} 7... Na5 {[%clk 0:02:55.9]} 8. Ba2 {[%clk
0:03:03.5]} 8... c5 {[%clk 0:02:57.5]} 9. b4 {[%clk 0:03:03.4]} 9... cxb4 {[%clk
0:02:50.7]} 10. cxb4 {[%clk 0:03:03.1]} 10... Nc6 {[%clk 0:02:52.2]} 11. b5
{[%clk 0:02:47.2]} 11... Nb4 {[%clk 0:02:51.7]} 12. Bc4 {[%clk 0:02:46.9]} 12...
a6 {[%clk 0:02:45.5]} 13. Bb2 {[%clk 0:02:44.6]} 13... axb5 {[%clk 0:02:46]} 14.
axb5 {[%clk 0:02:44.7]} 14... Rxa1 {[%clk 0:02:46.4]} 15. Bxa1 {[%clk
0:02:46.6]} 15... d5 {[%clk 0:02:13.8]} 16. exd5 {[%clk 0:02:41.5]} 16... Nfxd5
{[%clk 0:02:14.8]} 17. Nxe5 {[%clk 0:02:41.3]} 17... Bf6 {[%clk 0:02:11.5]} 18.
Nd2 {[%clk 0:02:39.4]} 18... Nf4 {[%clk 0:02:05.8]} 19. Ne4 {[%clk 0:02:36.4]}
19... Bxe5 {[%clk 0:01:26.7]} 20. Bxe5 {[%clk 0:02:34.6]} 20... Nbxd3 {[%clk
0:00:44.2]} 21. Bd6 {[%clk 0:02:08.4]} 21... Nb2 {[%clk 0:00:44.5]} 22. Qb3
{[%clk 0:01:40.1]} 22... Nxc4 {[%clk 0:00:42.9]} 23. Qxc4 {[%clk 0:01:36.3]}
23... Be6 {[%clk 0:00:39.2]} 24. Qc2 {[%clk 0:01:32.9]} 24... Re8 {[%clk
0:00:18]} 25. Bxf4 {[%clk 0:01:30.1]} 25... Bf5 {[%clk 0:00:19.1]} 26. f3 {[%clk
0:01:30.7]} 26... Qd4+ {[%clk 0:00:19.2]} 27. Qf2 {[%clk 0:01:29.1]} 27... Qxf2+
{[%clk 0:00:18.4]} 28. Kxf2 {[%clk 0:01:28.6]} 28... Bxe4 {[%clk 0:00:18.6]} 29.
Re1 {[%clk 0:01:28.7]} 29... f5 {[%clk 0:00:18.5]} 30. fxe4 {[%clk 0:01:27.9]}
30... fxe4 {[%clk 0:00:20.4]} 31. Ke3 {[%clk 0:01:26.8]} 31... Kf7 {[%clk
0:00:21.4]} 32. Rc1 {[%clk 0:01:26.7]} 32... Re7 {[%clk 0:00:20.5]} 33. b6
{[%clk 0:01:26.3]} 33... Ke6 {[%clk 0:00:21.1]} 34. Rc7 {[%clk 0:01:26.4]} 34...
Rxc7 {[%clk 0:00:22.1]} 35. Bxc7 {[%clk 0:01:25.8]} 35... Kd7 {[%clk 0:00:24]}
36. Kxe4 {[%clk 0:01:26.7]} 1-0

[Event "*** Titled Tuesday Blitz"]
[Site "Chess.com"]
[Date "2018.08.07"]
[Round "3"]
[White "Marreuh"]
[Black "AlanZhang"]
[Result "0-1"]
[WhiteElo "2017"]
[BlackElo "1933"]
[TimeControl "180+2"]
[EndTime "13:32:50 PDT"]
[Termination "AlanZhang won by checkmate"]

1. e4 {[%clk 0:03:01.9]} 1... e5 {[%clk 0:02:59.2]} 2. Nf3 {[%clk 0:03:02.4]}
2... Nc6 {[%clk 0:03:00.1]} 3. Bc4 {[%clk 0:03:03.9]} 3... Bc5 {[%clk
0:03:00.1]} 4. c3 {[%clk 0:03:04.9]} 4... Nf6 {[%clk 0:03:00.1]} 5. d3 {[%clk
0:03:06.1]} 5... d6 {[%clk 0:03:00.7]} 6. O-O {[%clk 0:03:06]} 6... Bb6 {[%clk
0:03:01.2]} 7. Nbd2 {[%clk 0:02:53.2]} 7... O-O {[%clk 0:02:57.6]} 8. Re1 {[%clk
0:02:53.5]} 8... h6 {[%clk 0:02:51.3]} 9. Nf1 {[%clk 0:02:54]} 9... Re8 {[%clk
0:02:49.8]} 10. Ng3 {[%clk 0:02:47.8]} 10... Be6 {[%clk 0:02:19.2]} 11. Bxe6
{[%clk 0:02:40.6]} 11... Rxe6 {[%clk 0:02:19.4]} 12. Nf5 {[%clk 0:02:41.1]}
12... d5 {[%clk 0:01:50.4]} 13. exd5 {[%clk 0:02:32.4]} 13... Nxd5 {[%clk
0:01:47.4]} 14. d4 {[%clk 0:02:06]} 14... exd4 {[%clk 0:01:02.5]} 15. Rxe6
{[%clk 0:02:04.7]} 15... fxe6 {[%clk 0:01:02.7]} 16. N5xd4 {[%clk 0:02:02.3]}
16... Nxd4 {[%clk 0:01:01.1]} 17. Nxd4 {[%clk 0:02:04.2]} 17... Qf6 {[%clk
0:00:57.9]} 18. Be3 {[%clk 0:01:51.7]} 18... Nxe3 {[%clk 0:00:27.8]} 19. fxe3
{[%clk 0:01:53.6]} 19... e5 {[%clk 0:00:25.8]} 20. Qb3+ {[%clk 0:01:50.6]} 20...
Kh8 {[%clk 0:00:21.9]} 21. Nc2 {[%clk 0:01:47.4]} 21... Rf8 {[%clk 0:00:21.7]}
22. h3 {[%clk 0:01:40.1]} 22... Qf2+ {[%clk 0:00:22.2]} 23. Kh2 {[%clk
0:01:41.4]} 23... Qd2 {[%clk 0:00:21.2]} 24. Rg1 {[%clk 0:01:30]} 24... Rf2
{[%clk 0:00:21.2]} 25. Ne1 {[%clk 0:01:29.8]} 25... Bxe3 {[%clk 0:00:21.4]} 26.
Qxb7 {[%clk 0:01:16]} 26... Rf8 {[%clk 0:00:06.8]} 27. Rh1 {[%clk 0:01:09.8]}
27... Bf4+ {[%clk 0:00:07.8]} 28. Kg1 {[%clk 0:01:04.6]} 28... Qxe1# {[%clk
0:00:09.7]} 0-1